[Event "January 9 Late 2024"]
[Site "https://www.chess.com"]
[Date "2024.01.09"]
[Round "6"]
[White "Rose, Felix"]
[Black "Oliveira, Tiago Batista"]
[Result "1-0"]
[Board "186"]
[TimeControl "180+1"]
[WhiteFideId "5105722"]
[BlackFideId "2108291"]
[WhiteElo "2245"]
[BlackElo "2032"]
[WhiteTeam "MEX"]
[BlackTeam "BRA"]
[WhiteClock "0:00:02"]
[BlackClock "0:00:00"]

1. e4 {[%clk 0:03:00]}  e5 {[%clk 0:02:53]} 2. Nf3 {[%clk 0:02:59]}  Nc6 {[%clk 0:02:52]} 3. d4 {[%clk 0:03:00]}  exd4 {[%clk 0:02:52]} 4. Nxd4 {[%clk 0:03:00]}  Nf6 {[%clk 0:02:52]} 5. Nxc6 {[%clk 0:03:00]}  bxc6 {[%clk 0:02:52]} 6. e5 {[%clk 0:03:00]}  Qe7 {[%clk 0:02:51]} 7. Qe2 {[%clk 0:03:00]}  Nd5 {[%clk 0:02:51]} 8. h4 {[%clk 0:02:59]}  d6 {[%clk 0:02:24]} 9. c4 {[%clk 0:02:39]}  Ba6 {[%clk 0:02:22]} 10. exd6 {[%clk 0:02:31]}  Qxe2+ {[%clk 0:02:14]} 11. Bxe2 {[%clk 0:02:31]}  Nb4 {[%clk 0:02:07]} 12. d7+ {[%clk 0:01:38]}  Kxd7 {[%clk 0:01:31]} 13. Kd1 {[%clk 0:01:37]}  Rd8 {[%clk 0:01:12]} 14. a3 {[%clk 0:01:16]}  Kc8+ {[%clk 0:01:06]} 15. Bd2 {[%clk 0:01:10]}  Nd3 {[%clk 0:01:01]} 16. Bxd3 {[%clk 0:00:40]}  Rxd3 {[%clk 0:01:00]} 17. Kc2 {[%clk 0:00:27]}  Bxc4 {[%clk 0:00:52]} 18. Nc3 {[%clk 0:00:28]}  Bc5 {[%clk 0:00:40]} 19. Ne4 {[%clk 0:00:17]}  Bb6 {[%clk 0:00:34]} 20. Bc3 {[%clk 0:00:16]}  f5 {[%clk 0:00:17]} 21. Nd2 {[%clk 0:00:16]}  Ba6 {[%clk 0:00:14]} 22. f3 {[%clk 0:00:16]}  Rhd8 {[%clk 0:00:12]} 23. Rhe1 {[%clk 0:00:15]}  g6 {[%clk 0:00:11]} 24. Re7 {[%clk 0:00:14]}  R3d7 {[%clk 0:00:11]} 25. Rae1 {[%clk 0:00:14]}  Bd3+ {[%clk 0:00:11]} 26. Kc1 {[%clk 0:00:12]}  Bf2 {[%clk 0:00:12]} 27. Rxd7 {[%clk 0:00:11]}  Rxd7 {[%clk 0:00:10]} 28. Re8+ {[%clk 0:00:11]}  Kb7 {[%clk 0:00:11]} 29. h5 {[%clk 0:00:09]}  f4 {[%clk 0:00:09]} 30. hxg6 {[%clk 0:00:09]}  Bxg6 {[%clk 0:00:09]} 31. Ne4 {[%clk 0:00:07]}  Be3+ {[%clk 0:00:08]} 32. Kc2 {[%clk 0:00:07]}  c5 {[%clk 0:00:06]} 33. Kb3 {[%clk 0:00:07]}  c6 {[%clk 0:00:03]} 34. Rf8 {[%clk 0:00:06]}  Bf7+ {[%clk 0:00:02]} 35. Kc2 {[%clk 0:00:06]}  Bg6 {[%clk 0:00:00]} 36. Rf6 {[%clk 0:00:02]} 1-0

[Event "January 9 Late 2024"]
[Site "https://www.chess.com"]
[Date "2024.01.09"]
[Round "6"]
[White "Hernandez Jimenez, Alexander Andres"]
[Black "Burke, Paul"]
[Result "1-0"]
[Board "188"]
[TimeControl "180+1"]
[WhiteFideId "3900452"]
[BlackFideId "2605767"]
[WhiteElo "2239"]
[BlackElo "1883"]
[WhiteTeam "VEN"]
[BlackTeam "CAN"]
[WhiteClock "0:00:07"]
[BlackClock "0:00:02"]

1. e4 {[%clk 0:02:55]}  e5 {[%clk 0:02:59]} 2. Nf3 {[%clk 0:02:54]}  Nc6 {[%clk 0:03:00]} 3. Bc4 {[%clk 0:02:55]}  Be7 {[%clk 0:02:59]} 4. O-O {[%clk 0:02:54]}  Nf6 {[%clk 0:02:59]} 5. Re1 {[%clk 0:02:54]}  Nxe4 {[%clk 0:02:57]} 6. Rxe4 {[%clk 0:02:34]}  d5 {[%clk 0:02:57]} 7. Re1 {[%clk 0:02:34]}  dxc4 {[%clk 0:02:56]} 8. Nxe5 {[%clk 0:02:34]}  Nxe5 {[%clk 0:02:56]} 9. Rxe5 {[%clk 0:02:33]}  O-O {[%clk 0:02:56]} 10. Nc3 {[%clk 0:02:32]}  Bd6 {[%clk 0:02:56]} 11. Re1 {[%clk 0:02:31]}  Qh4 {[%clk 0:02:55]} 12. g3 {[%clk 0:02:29]}  Qh3 {[%clk 0:02:55]} 13. d3 {[%clk 0:02:18]}  Bg4 {[%clk 0:02:40]} 14. f3 {[%clk 0:02:17]}  Bh5 {[%clk 0:02:20]} 15. Ne4 {[%clk 0:02:07]}  f5 {[%clk 0:02:03]} 16. Nxd6 {[%clk 0:02:05]}  cxd6 {[%clk 0:02:03]} 17. Bf4 {[%clk 0:01:27]}  Rfe8 {[%clk 0:01:57]} 18. Rxe8+ {[%clk 0:01:08]}  Rxe8 {[%clk 0:01:55]} 19. dxc4 {[%clk 0:01:08]}  Bf7 {[%clk 0:01:12]} 20. Qd3 {[%clk 0:00:59]}  Qh5 {[%clk 0:01:04]} 21. Bxd6 {[%clk 0:00:52]}  Qg6 {[%clk 0:00:57]} 22. c5 {[%clk 0:00:50]}  Qe6 {[%clk 0:00:49]} 23. Kf2 {[%clk 0:00:40]}  g5 {[%clk 0:00:34]} 24. f4 {[%clk 0:00:35]}  g4 {[%clk 0:00:32]} 25. Be5 {[%clk 0:00:20]}  Qh6 {[%clk 0:00:25]} 26. Kg1 {[%clk 0:00:19]}  Qc6 {[%clk 0:00:23]} 27. Re1 {[%clk 0:00:15]}  Bd5 {[%clk 0:00:19]} 28. Re2 {[%clk 0:00:13]}  Bf3 {[%clk 0:00:17]} 29. Rd2 {[%clk 0:00:12]}  Qxc5+ {[%clk 0:00:13]} 30. Qd4 {[%clk 0:00:10]}  Qc6 {[%clk 0:00:12]} 31. Qd7 {[%clk 0:00:08]}  Qxd7 {[%clk 0:00:10]} 32. Rxd7 {[%clk 0:00:07]}  Rc8 {[%clk 0:00:10]} 33. c3 {[%clk 0:00:07]}  h5 {[%clk 0:00:07]} 34. Rg7+ {[%clk 0:00:07]}  Kf8 {[%clk 0:00:06]} 35. Rh7 {[%clk 0:00:07]}  Be4 {[%clk 0:00:02]} 36. Rh8+ {[%clk 0:00:07]} 1-0

[Event "January 9 Late 2024"]
[Site "https://www.chess.com"]
[Date "2024.01.09"]
[Round "6"]
[White "Gulamirian, Korun"]
[Black "Gonzalez Vega, Alejandro"]
[Result "0-1"]
[Board "189"]
[TimeControl "180+1"]
[WhiteFideId "4144899"]
[BlackFideId "3510042"]
[WhiteElo "1637"]
[BlackElo "2232"]
[WhiteTeam "RUS"]
[BlackTeam "CUB"]
[WhiteClock "0:00:00"]
[BlackClock "0:01:45"]

1. e4 {[%clk 0:02:58]}  c5 {[%clk 0:02:59]} 2. Nf3 {[%clk 0:02:56]}  a6 {[%clk 0:02:59]} 3. d4 {[%clk 0:02:54]}  cxd4 {[%clk 0:02:59]} 4. Nxd4 {[%clk 0:02:54]}  Nf6 {[%clk 0:02:58]} 5. Nc3 {[%clk 0:02:54]}  e5 {[%clk 0:02:58]} 6. Nf5 {[%clk 0:02:50]}  d5 {[%clk 0:02:56]} 7. Bg5 {[%clk 0:02:32]}  d4 {[%clk 0:02:52]} 8. Nd5 {[%clk 0:02:29]}  Bxf5 {[%clk 0:02:51]} 9. Bxf6 {[%clk 0:02:23]}  gxf6 {[%clk 0:02:51]} 10. f3 {[%clk 0:02:03]}  Be6 {[%clk 0:02:49]} 11. Bc4 {[%clk 0:02:02]}  Nc6 {[%clk 0:02:45]} 12. O-O {[%clk 0:02:01]}  Rc8 {[%clk 0:02:44]} 13. a4 {[%clk 0:01:53]}  h5 {[%clk 0:02:38]} 14. c3 {[%clk 0:01:49]}  h4 {[%clk 0:02:37]} 15. h3 {[%clk 0:01:46]}  Bc5 {[%clk 0:02:33]} 16. b4 {[%clk 0:01:39]}  Ba7 {[%clk 0:02:26]} 17. Kh2 {[%clk 0:01:27]}  dxc3 {[%clk 0:02:23]} 18. b5 {[%clk 0:01:21]}  Nd4 {[%clk 0:02:22]} 19. Ba2 {[%clk 0:01:06]}  f5 {[%clk 0:02:06]} 20. b6 {[%clk 0:00:58]}  Bb8 {[%clk 0:02:02]} 21. Kh1 {[%clk 0:00:50]}  f4 {[%clk 0:01:59]} 22. Nc7+ {[%clk 0:00:40]}  Bxc7 {[%clk 0:01:58]} 23. bxc7 {[%clk 0:00:40]}  Rxc7 {[%clk 0:01:56]} 24. Bxe6 {[%clk 0:00:40]}  fxe6 {[%clk 0:01:56]} 25. a5 {[%clk 0:00:31]}  Rg8 {[%clk 0:01:55]} 26. Qa4+ {[%clk 0:00:26]}  Qd7 {[%clk 0:01:50]} 27. Qxd7+ {[%clk 0:00:15]}  Kxd7 {[%clk 0:01:49]} 28. Rac1 {[%clk 0:00:11]}  c2 {[%clk 0:01:48]} 29. Rf2 {[%clk 0:00:10]}  Rgc8 {[%clk 0:01:47]} 30. Kg1 {[%clk 0:00:00]}  Nb3 {[%clk 0:01:45]} 0-1

[Event "January 9 Late 2024"]
[Site "https://www.chess.com"]
[Date "2024.01.10"]
[Round "6"]
[White "Awoki, Daniel Teidi"]
[Black "Wang, Alexander J"]
[Result "1-0"]
[Board "191"]
[TimeControl "180+1"]
[WhiteFideId "2100827"]
[BlackFideId "30955270"]
[WhiteElo "2443"]
[BlackElo "2206"]
[WhiteTeam "BRA"]
[BlackTeam "USA"]
[WhiteClock "0:00:04"]
[BlackClock "0:00:04"]

1. e4 {[%clk 0:02:53]}  c5 {[%clk 0:02:59]} 2. Nf3 {[%clk 0:02:52]}  d6 {[%clk 0:02:58]} 3. d4 {[%clk 0:02:53]}  cxd4 {[%clk 0:02:59]} 4. Nxd4 {[%clk 0:02:53]}  Nf6 {[%clk 0:03:00]} 5. Nc3 {[%clk 0:02:54]}  g6 {[%clk 0:02:59]} 6. Be3 {[%clk 0:02:54]}  Bg7 {[%clk 0:02:58]} 7. f3 {[%clk 0:02:54]}  Nc6 {[%clk 0:02:56]} 8. Qd2 {[%clk 0:02:55]}  O-O {[%clk 0:02:54]} 9. Bc4 {[%clk 0:02:55]}  Bd7 {[%clk 0:02:51]} 10. O-O-O {[%clk 0:02:54]}  Ne5 {[%clk 0:02:50]} 11. Bb3 {[%clk 0:02:54]}  Rc8 {[%clk 0:02:44]} 12. h4 {[%clk 0:02:54]}  h5 {[%clk 0:02:40]} 13. Bh6 {[%clk 0:02:15]}  Kh7 {[%clk 0:02:32]} 14. Bxg7 {[%clk 0:02:15]}  Kxg7 {[%clk 0:02:33]} 15. Kb1 {[%clk 0:02:13]}  a6 {[%clk 0:02:18]} 16. Qg5 {[%clk 0:02:08]}  Rc5 {[%clk 0:02:08]} 17. Nf5+ {[%clk 0:02:07]}  Bxf5 {[%clk 0:02:06]} 18. exf5 {[%clk 0:02:08]}  Nh7 {[%clk 0:02:01]} 19. Qg3 {[%clk 0:01:57]}  Nf6 {[%clk 0:01:41]} 20. fxg6 {[%clk 0:01:54]}  fxg6 {[%clk 0:01:39]} 21. Rhe1 {[%clk 0:01:48]}  Rxc3 {[%clk 0:01:30]} 22. bxc3 {[%clk 0:01:45]}  Qc7 {[%clk 0:01:30]} 23. Rxe5 {[%clk 0:01:40]}  dxe5 {[%clk 0:01:29]} 24. Re1 {[%clk 0:01:34]}  Qxc3 {[%clk 0:01:23]} 25. Rxe5 {[%clk 0:01:34]}  Qc7 {[%clk 0:01:05]} 26. Qe1 {[%clk 0:01:29]}  Re8 {[%clk 0:01:02]} 27. Qe2 {[%clk 0:01:23]}  b5 {[%clk 0:00:56]} 28. Rg5 {[%clk 0:01:14]}  Qd6 {[%clk 0:00:46]} 29. g4 {[%clk 0:01:05]}  e5 {[%clk 0:00:23]} 30. gxh5 {[%clk 0:00:56]}  Nxh5 {[%clk 0:00:24]} 31. Rg1 {[%clk 0:00:22]}  Nf4 {[%clk 0:00:23]} 32. Qe4 {[%clk 0:00:22]}  Qd4 {[%clk 0:00:17]} 33. Qb7+ {[%clk 0:00:22]}  Kh6 {[%clk 0:00:16]} 34. Re1 {[%clk 0:00:16]}  Qd2 {[%clk 0:00:11]} 35. Qe4 {[%clk 0:00:13]}  Qf2 {[%clk 0:00:06]} 36. Rh1 {[%clk 0:00:10]}  Qg2 {[%clk 0:00:06]} 37. Rd1 {[%clk 0:00:09]}  Qg3 {[%clk 0:00:06]} 38. Bf7 {[%clk 0:00:05]}  Qxh4 {[%clk 0:00:04]} 39. Bxe8 {[%clk 0:00:04]} 1-0

[Event "January 9 Late 2024"]
[Site "https://www.chess.com"]
[Date "2024.01.09"]
[Round "6"]
[White "Piscicelli, Daniel Orlando"]
[Black "Diaz Herquinio, Brahian"]
[Result "0-1"]
[Board "192"]
[TimeControl "180+1"]
[WhiteFideId "101958"]
[BlackFideId "3809480"]
[WhiteElo "2171"]
[BlackElo "2417"]
[WhiteTeam "ARG"]
[BlackTeam "PER"]
[WhiteClock "0:01:24"]
[BlackClock "0:01:48"]

1. e4 {[%clk 0:02:59]}  c5 {[%clk 0:02:59]} 2. Nc3 {[%clk 0:02:56]}  a6 {[%clk 0:02:59]} 3. d4 {[%clk 0:02:56]}  cxd4 {[%clk 0:02:59]} 4. Qxd4 {[%clk 0:02:56]}  Nc6 {[%clk 0:02:58]} 5. Qd2 {[%clk 0:02:44]}  e6 {[%clk 0:02:58]} 6. b3 {[%clk 0:02:44]}  Qc7 {[%clk 0:02:58]} 7. Bb2 {[%clk 0:02:44]}  Nf6 {[%clk 0:02:58]} 8. O-O-O {[%clk 0:02:41]}  b5 {[%clk 0:02:57]} 9. f3 {[%clk 0:02:41]}  Be7 {[%clk 0:02:56]} 10. h4 {[%clk 0:02:39]}  O-O {[%clk 0:02:56]} 11. g4 {[%clk 0:02:39]}  d6 {[%clk 0:02:56]} 12. h5 {[%clk 0:02:39]}  Nd7 {[%clk 0:02:34]} 13. h6 {[%clk 0:02:33]}  g6 {[%clk 0:02:32]} 14. Nge2 {[%clk 0:02:21]}  Nc5 {[%clk 0:02:28]} 15. f4 {[%clk 0:02:13]}  b4 {[%clk 0:02:25]} 16. Nb1 {[%clk 0:02:12]}  a5 {[%clk 0:02:20]} 17. Bg2 {[%clk 0:02:00]}  a4 {[%clk 0:02:13]} 18. Nd4 {[%clk 0:01:48]}  axb3 {[%clk 0:01:52]} 19. axb3 {[%clk 0:01:26]}  Nxd4 {[%clk 0:01:48]} 20. Qxd4 {[%clk 0:01:24]}  Nxb3# {[%clk 0:01:48]} 0-1

[Event "January 9 Late 2024"]
[Site "https://www.chess.com"]
[Date "2024.01.09"]
[Round "7"]
[White "Andreikin, Dmitry"]
[Black "Alekseenko, Kirill"]
[Result "1/2-1/2"]
[Board "4"]
[TimeControl "180+1"]
[WhiteFideId "4158814"]
[BlackFideId "4135539"]
[WhiteElo "3105"]
[BlackElo "2945"]
[WhiteTeam "FID"]
[BlackTeam "AUT"]
[WhiteClock "0:00:10"]
[BlackClock "0:00:42"]

1. e4 {[%clk 0:03:00]}  e5 {[%clk 0:02:59]} 2. Nf3 {[%clk 0:03:00]}  Nc6 {[%clk 0:03:00]} 3. Bb5 {[%clk 0:03:00]}  a6 {[%clk 0:03:00]} 4. Ba4 {[%clk 0:02:59]}  d6 {[%clk 0:03:01]} 5. c3 {[%clk 0:02:59]}  Bd7 {[%clk 0:03:01]} 6. d4 {[%clk 0:02:59]}  Nge7 {[%clk 0:03:01]} 7. O-O {[%clk 0:02:58]}  Ng6 {[%clk 0:03:01]} 8. Re1 {[%clk 0:02:49]}  Be7 {[%clk 0:03:02]} 9. Nbd2 {[%clk 0:02:49]}  O-O {[%clk 0:03:02]} 10. Nf1 {[%clk 0:02:50]}  exd4 {[%clk 0:03:02]} 11. cxd4 {[%clk 0:02:49]}  Bg4 {[%clk 0:03:03]} 12. Bxc6 {[%clk 0:02:39]}  bxc6 {[%clk 0:03:04]} 13. Ne3 {[%clk 0:02:39]}  Bd7 {[%clk 0:03:03]} 14. b3 {[%clk 0:02:31]}  f5 {[%clk 0:02:41]} 15. exf5 {[%clk 0:02:21]}  Bxf5 {[%clk 0:02:42]} 16. Nxf5 {[%clk 0:02:20]}  Rxf5 {[%clk 0:02:43]} 17. Qd3 {[%clk 0:02:11]}  Qd7 {[%clk 0:02:42]} 18. Bd2 {[%clk 0:02:09]}  Raf8 {[%clk 0:02:37]} 19. Qe4 {[%clk 0:01:50]}  Rd5 {[%clk 0:01:52]} 20. Rac1 {[%clk 0:01:46]}  Bf6 {[%clk 0:01:49]} 21. g3 {[%clk 0:01:36]}  Ne7 {[%clk 0:01:46]} 22. Qe6+ {[%clk 0:01:15]}  Qxe6 {[%clk 0:01:43]} 23. Rxe6 {[%clk 0:01:16]}  Nf5 {[%clk 0:01:38]} 24. Rxc6 {[%clk 0:00:52]}  Nxd4 {[%clk 0:01:37]} 25. Nxd4 {[%clk 0:00:52]}  Bxd4 {[%clk 0:01:37]} 26. Be3 {[%clk 0:00:34]}  Bxe3 {[%clk 0:01:36]} 27. Rxe3 {[%clk 0:00:34]}  Rd1+ {[%clk 0:01:15]} 28. Kg2 {[%clk 0:00:35]}  Rd2 {[%clk 0:01:15]} 29. Rf3 {[%clk 0:00:34]}  Rxa2 {[%clk 0:01:08]} 30. Rxc7 {[%clk 0:00:30]}  Rxf3 {[%clk 0:01:03]} 31. Kxf3 {[%clk 0:00:31]}  Ra3 {[%clk 0:00:54]} 32. Rb7 {[%clk 0:00:31]}  a5 {[%clk 0:00:54]} 33. Ke4 {[%clk 0:00:28]}  a4 {[%clk 0:00:51]} 34. bxa4 {[%clk 0:00:17]}  Rxa4+ {[%clk 0:00:52]} 35. Kf5 {[%clk 0:00:15]}  Ra2 {[%clk 0:00:47]} 36. Rb8+ {[%clk 0:00:12]}  Kf7 {[%clk 0:00:47]} 37. Rb7+ {[%clk 0:00:13]}  Kg8 {[%clk 0:00:47]} 38. f4 {[%clk 0:00:08]}  Rxh2 {[%clk 0:00:41]} 39. Rb8+ {[%clk 0:00:08]}  Kf7 {[%clk 0:00:41]} 40. Rb7+ {[%clk 0:00:09]}  Kg8 {[%clk 0:00:41]} 41. Rb8+ {[%clk 0:00:10]}  Kf7 {[%clk 0:00:42]} 42. Rb7+ {[%clk 0:00:10]}  Kg8 {[%clk 0:00:42]} 1/2-1/2

[Event "January 9 Late 2024"]
[Site "https://www.chess.com"]
[Date "2024.01.09"]
[Round "7"]
[White "Bortnyk, Olexandr"]
[Black "Bok, Benjamin"]
[Result "1-0"]
[Board "8"]
[TimeControl "180+1"]
[WhiteFideId "14120828"]
[BlackFideId "1017063"]
[WhiteElo "3111"]
[BlackElo "2941"]
[WhiteTeam "UKR"]
[BlackTeam "NED"]
[WhiteClock "0:00:29"]
[BlackClock "0:00:01"]

1. e4 {[%clk 0:03:00]}  c5 {[%clk 0:03:00]} 2. b4 {[%clk 0:03:01]}  cxb4 {[%clk 0:03:00]} 3. a3 {[%clk 0:03:01]}  d5 {[%clk 0:03:00]} 4. exd5 {[%clk 0:02:59]}  Qxd5 {[%clk 0:03:00]} 5. Nf3 {[%clk 0:02:59]}  e6 {[%clk 0:02:30]} 6. Bb2 {[%clk 0:02:54]}  Nf6 {[%clk 0:02:28]} 7. Bd3 {[%clk 0:02:50]}  Nc6 {[%clk 0:02:24]} 8. O-O {[%clk 0:02:48]}  bxa3 {[%clk 0:02:15]} 9. Nxa3 {[%clk 0:02:48]}  Be7 {[%clk 0:02:11]} 10. Nb5 {[%clk 0:02:24]}  Qd8 {[%clk 0:02:10]} 11. Ne5 {[%clk 0:02:24]}  O-O {[%clk 0:02:01]} 12. Qf3 {[%clk 0:02:04]}  Bd7 {[%clk 0:01:53]} 13. Nxd7 {[%clk 0:01:47]}  Qxd7 {[%clk 0:01:54]} 14. Qh3 {[%clk 0:01:47]}  h6 {[%clk 0:01:50]} 15. Ra4 {[%clk 0:01:38]}  a6 {[%clk 0:01:19]} 16. Rg4 {[%clk 0:00:41]}  Nxg4 {[%clk 0:00:03]} 17. Qxg4 {[%clk 0:00:41]}  Bg5 {[%clk 0:00:02]} 18. h4 {[%clk 0:00:42]}  axb5 {[%clk 0:00:02]} 19. hxg5 {[%clk 0:00:42]}  Ra2 {[%clk 0:00:01]} 20. Bxg7 {[%clk 0:00:27]}  Kxg7 {[%clk 0:00:01]} 21. gxh6+ {[%clk 0:00:28]}  Kxh6 {[%clk 0:00:02]} 22. Qh4+ {[%clk 0:00:28]}  Kg7 {[%clk 0:00:02]} 23. Qg5+ {[%clk 0:00:28]}  Kh8 {[%clk 0:00:01]} 24. Qh6+ {[%clk 0:00:29]} 1-0

[Event "January 9 Late 2024"]
[Site "https://www.chess.com"]
[Date "2024.01.09"]
[Round "7"]
[White "Tabatabaei, M. Amin"]
[Black "Aravindh, Chithambaram VR."]
[Result "1-0"]
[Board "9"]
[TimeControl "180+1"]
[WhiteFideId "12521213"]
[BlackFideId "5072786"]
[WhiteElo "3094"]
[BlackElo "2937"]
[WhiteTeam "IRI"]
[BlackTeam "IND"]
[WhiteClock "0:01:13"]
[BlackClock "0:00:19"]

1. c4 {[%clk 0:03:00]}  Nf6 {[%clk 0:03:00]} 2. Nc3 {[%clk 0:03:01]}  c5 {[%clk 0:02:58]} 3. g3 {[%clk 0:03:01]}  Nc6 {[%clk 0:02:58]} 4. Bg2 {[%clk 0:03:01]}  e5 {[%clk 0:02:58]} 5. d3 {[%clk 0:02:55]}  Be7 {[%clk 0:02:56]} 6. Bg5 {[%clk 0:02:55]}  O-O {[%clk 0:02:56]} 7. Nf3 {[%clk 0:02:55]}  d6 {[%clk 0:02:56]} 8. O-O {[%clk 0:02:55]}  Be6 {[%clk 0:02:55]} 9. Nd2 {[%clk 0:02:55]}  Nd7 {[%clk 0:02:34]} 10. Bxe7 {[%clk 0:02:55]}  Qxe7 {[%clk 0:02:34]} 11. Nd5 {[%clk 0:02:56]}  Qd8 {[%clk 0:02:34]} 12. a3 {[%clk 0:02:56]}  a5 {[%clk 0:02:32]} 13. Rb1 {[%clk 0:02:56]}  h6 {[%clk 0:02:27]} 14. Ne4 {[%clk 0:02:56]}  Nb6 {[%clk 0:02:24]} 15. Nxb6 {[%clk 0:02:55]}  Qxb6 {[%clk 0:02:25]} 16. Nxd6 {[%clk 0:02:56]}  Nd4 {[%clk 0:02:21]} 17. Ne4 {[%clk 0:02:55]}  Rad8 {[%clk 0:02:20]} 18. Nc3 {[%clk 0:02:54]}  Bg4 {[%clk 0:02:18]} 19. h3 {[%clk 0:02:49]}  Bh5 {[%clk 0:02:18]} 20. g4 {[%clk 0:02:48]}  Bg6 {[%clk 0:02:19]} 21. Nd5 {[%clk 0:02:48]}  Qd6 {[%clk 0:02:18]} 22. b4 {[%clk 0:02:49]}  cxb4 {[%clk 0:02:11]} 23. axb4 {[%clk 0:02:50]}  a4 {[%clk 0:02:05]} 24. e3 {[%clk 0:02:46]}  Ne6 {[%clk 0:02:05]} 25. Ra1 {[%clk 0:02:30]}  b5 {[%clk 0:01:46]} 26. cxb5 {[%clk 0:02:29]}  Nc7 {[%clk 0:01:42]} 27. Nxc7 {[%clk 0:02:13]}  Qxc7 {[%clk 0:01:43]} 28. Qxa4 {[%clk 0:02:14]}  Bxd3 {[%clk 0:01:41]} 29. Rfc1 {[%clk 0:02:14]}  Qb8 {[%clk 0:01:38]} 30. Rc5 {[%clk 0:02:09]}  e4 {[%clk 0:01:33]} 31. Qa7 {[%clk 0:02:09]}  Qd6 {[%clk 0:01:32]} 32. b6 {[%clk 0:02:03]}  Rb8 {[%clk 0:01:20]} 33. b7 {[%clk 0:01:32]}  Qe7 {[%clk 0:01:20]} 34. Qxb8 {[%clk 0:01:28]}  Rxb8 {[%clk 0:01:11]} 35. Rc8+ {[%clk 0:01:28]}  Kh7 {[%clk 0:01:09]} 36. Rxb8 {[%clk 0:01:28]}  Kg6 {[%clk 0:00:57]} 37. Ra7 {[%clk 0:01:18]}  Qxb4 {[%clk 0:00:19]} 38. Rc8 {[%clk 0:01:13]} 1-0

[Event "January 9 Late 2024"]
[Site "https://www.chess.com"]
[Date "2024.01.09"]
[Round "7"]
[White "Bluebaum, Matthias"]
[Black "Matlakov, Maxim"]
[Result "1-0"]
[Board "10"]
[TimeControl "180+1"]
[WhiteFideId "24651516"]
[BlackFideId "4168003"]
[WhiteElo "3078"]
[BlackElo "2934"]
[WhiteTeam "GER"]
[BlackTeam "RUS"]
[WhiteClock "0:01:43"]
[BlackClock "0:01:07"]

1. d4 {[%clk 0:03:00]}  Nf6 {[%clk 0:02:59]} 2. c4 {[%clk 0:03:01]}  e6 {[%clk 0:03:00]} 3. Nc3 {[%clk 0:03:01]}  d5 {[%clk 0:03:00]} 4. cxd5 {[%clk 0:03:02]}  exd5 {[%clk 0:03:01]} 5. Bg5 {[%clk 0:03:02]}  c6 {[%clk 0:03:01]} 6. e3 {[%clk 0:03:03]}  Bd6 {[%clk 0:03:01]} 7. Bd3 {[%clk 0:03:03]}  O-O {[%clk 0:03:01]} 8. Nf3 {[%clk 0:03:02]}  Re8 {[%clk 0:03:01]} 9. Qc2 {[%clk 0:02:49]}  h6 {[%clk 0:03:00]} 10. Bh4 {[%clk 0:02:49]}  Be6 {[%clk 0:03:00]} 11. O-O {[%clk 0:02:46]}  Nbd7 {[%clk 0:03:00]} 12. Rab1 {[%clk 0:02:45]}  a5 {[%clk 0:02:52]} 13. a3 {[%clk 0:02:45]}  Bg4 {[%clk 0:02:51]} 14. Bg3 {[%clk 0:02:40]}  Bxg3 {[%clk 0:02:42]} 15. hxg3 {[%clk 0:02:41]}  Qe7 {[%clk 0:02:39]} 16. b4 {[%clk 0:02:37]}  axb4 {[%clk 0:02:37]} 17. axb4 {[%clk 0:02:38]}  g6 {[%clk 0:02:30]} 18. b5 {[%clk 0:02:35]}  Kg7 {[%clk 0:02:29]} 19. bxc6 {[%clk 0:02:34]}  bxc6 {[%clk 0:02:30]} 20. Ne2 {[%clk 0:02:33]}  Rec8 {[%clk 0:02:28]} 21. Rb7 {[%clk 0:02:28]}  Qd6 {[%clk 0:02:17]} 22. Nf4 {[%clk 0:02:21]}  Bxf3 {[%clk 0:02:17]} 23. gxf3 {[%clk 0:02:22]}  c5 {[%clk 0:01:53]} 24. Bxg6 {[%clk 0:02:08]}  cxd4 {[%clk 0:01:52]} 25. Qf5 {[%clk 0:02:08]}  dxe3 {[%clk 0:01:13]} 26. Nh5+ {[%clk 0:01:43]}  Nxh5 {[%clk 0:01:07]} 27. Qxf7+ {[%clk 0:01:43]} 1-0

[Event "January 9 Late 2024"]
[Site "https://www.chess.com"]
[Date "2024.01.09"]
[Round "7"]
[White "Liascovich, Lucas"]
[Black "Iturrizaga Bonelli, Eduardo"]
[Result "0-1"]
[Board "12"]
[TimeControl "180+1"]
[WhiteFideId "108634"]
[BlackFideId "3901211"]
[WhiteElo "2927"]
[BlackElo "3037"]
[WhiteTeam "ARG"]
[BlackTeam "ESP"]
[WhiteClock "0:00:57"]
[BlackClock "0:00:29"]

1. e4 {[%clk 0:03:00]}  c5 {[%clk 0:02:57]} 2. Nc3 {[%clk 0:03:01]}  e6 {[%clk 0:02:57]} 3. d4 {[%clk 0:03:00]}  cxd4 {[%clk 0:02:57]} 4. Qxd4 {[%clk 0:03:01]}  Nc6 {[%clk 0:02:57]} 5. Qd3 {[%clk 0:03:01]}  a6 {[%clk 0:02:57]} 6. Bf4 {[%clk 0:03:01]}  b5 {[%clk 0:02:56]} 7. O-O-O {[%clk 0:03:00]}  Bb7 {[%clk 0:02:57]} 8. Qg3 {[%clk 0:02:59]}  Rc8 {[%clk 0:02:56]} 9. Kb1 {[%clk 0:02:55]}  Nf6 {[%clk 0:02:15]} 10. Be2 {[%clk 0:02:26]}  b4 {[%clk 0:02:14]} 11. Na4 {[%clk 0:02:27]}  Qa5 {[%clk 0:02:10]} 12. e5 {[%clk 0:02:17]}  Ne4 {[%clk 0:02:01]} 13. Qe3 {[%clk 0:02:17]}  Nxe5 {[%clk 0:01:59]} 14. Bxe5 {[%clk 0:02:10]}  Qxa4 {[%clk 0:01:57]} 15. b3 {[%clk 0:02:04]}  Qa5 {[%clk 0:01:57]} 16. Nf3 {[%clk 0:01:59]}  Nc3+ {[%clk 0:01:48]} 17. Bxc3 {[%clk 0:01:56]}  bxc3 {[%clk 0:01:49]} 18. Qd4 {[%clk 0:01:57]}  d5 {[%clk 0:01:47]} 19. a4 {[%clk 0:01:49]}  Qb4 {[%clk 0:01:40]} 20. Qxb4 {[%clk 0:01:45]}  Bxb4 {[%clk 0:01:41]} 21. Rhe1 {[%clk 0:01:46]}  O-O {[%clk 0:01:38]} 22. Bd3 {[%clk 0:01:46]}  Bd6 {[%clk 0:01:34]} 23. g3 {[%clk 0:01:31]}  Rfe8 {[%clk 0:01:34]} 24. Ne5 {[%clk 0:01:27]}  f6 {[%clk 0:01:27]} 25. Ng4 {[%clk 0:01:27]}  Kf7 {[%clk 0:01:15]} 26. f4 {[%clk 0:01:24]}  h5 {[%clk 0:01:08]} 27. Ne3 {[%clk 0:01:24]}  g6 {[%clk 0:01:08]} 28. h4 {[%clk 0:01:19]}  Bc5 {[%clk 0:01:06]} 29. Bf1 {[%clk 0:01:18]}  Rcd8 {[%clk 0:01:03]} 30. Bh3 {[%clk 0:01:17]}  Bc6 {[%clk 0:00:55]} 31. Bf1 {[%clk 0:01:14]}  Rb8 {[%clk 0:00:52]} 32. Ka2 {[%clk 0:01:14]}  Bxa4 {[%clk 0:00:49]} 33. Nxd5 {[%clk 0:01:14]}  exd5 {[%clk 0:00:46]} 34. bxa4 {[%clk 0:01:09]}  Rxe1 {[%clk 0:00:42]} 35. Rxe1 {[%clk 0:01:07]}  Rb2+ {[%clk 0:00:43]} 36. Ka1 {[%clk 0:01:08]}  Rxc2 {[%clk 0:00:43]} 37. Bxa6 {[%clk 0:01:06]}  Rd2 {[%clk 0:00:36]} 38. a5 {[%clk 0:01:03]}  c2 {[%clk 0:00:30]} 39. Rc1 {[%clk 0:00:57]}  Ba3 {[%clk 0:00:29]} 0-1